[Event "*** Titled Tuesday 3|2 Blitz"]
[Site "Chess.com"]
[Date "2016.10.04"]
[Round "3"]
[White "Schemato"]
[Black "dawtonlms"]
[Result "1/2-1/2"]
[WhiteElo "2317"]
[BlackElo "2170"]
[TimeControl "180+2"]
[EndTime "11:40:35 PDT"]
[Termination "Game drawn by stalemate"]

1. c4 {[%clk 0:03:02]} 1... Nf6 {[%clk 0:03:00.3]} 2. Nc3 {[%clk 0:03:02.3]}
2... g6 {[%clk 0:02:59.9]} 3. g3 {[%clk 0:03:03.3]} 3... Bg7 {[%clk 0:03:00.7]}
4. Bg2 {[%clk 0:03:04.9]} 4... O-O {[%clk 0:03:02.2]} 5. e4 {[%clk 0:03:06.4]}
5... d6 {[%clk 0:03:03]} 6. Nge2 {[%clk 0:03:07.3]} 6... c5 {[%clk 0:03:01]} 7.
O-O {[%clk 0:03:08.5]} 7... Nc6 {[%clk 0:03:02.1]} 8. d3 {[%clk 0:03:09.9]} 8...
Ne8 {[%clk 0:03:03.1]} 9. Be3 {[%clk 0:03:09.6]} 9... Nc7 {[%clk 0:03:03.9]} 10.
d4 {[%clk 0:03:09.6]} 10... cxd4 {[%clk 0:03:01.7]} 11. Nxd4 {[%clk 0:03:11.5]}
11... Ne6 {[%clk 0:02:59.9]} 12. Nde2 {[%clk 0:03:11.6]} 12... Nc5 {[%clk
0:02:55.7]} 13. Qd2 {[%clk 0:03:04.5]} 13... Qa5 {[%clk 0:02:42.1]} 14. Rab1
{[%clk 0:02:51.6]} 14... Be6 {[%clk 0:02:13.5]} 15. b3 {[%clk 0:02:42.4]} 15...
a6 {[%clk 0:01:35.5]} 16. f4 {[%clk 0:02:21.8]} 16... Bg4 {[%clk 0:01:32.9]} 17.
h3 {[%clk 0:02:05.4]} 17... Bxe2 {[%clk 0:01:30]} 18. Nxe2 {[%clk 0:02:06.3]}
18... Qxd2 {[%clk 0:01:30.6]} 19. Bxd2 {[%clk 0:02:08.2]} 19... e5 {[%clk
0:01:21.8]} 20. f5 {[%clk 0:02:02.9]} 20... f6 {[%clk 0:01:01.5]} 21. Be3 {[%clk
0:01:55.3]} 21... b5 {[%clk 0:00:53.7]} 22. Rfd1 {[%clk 0:01:32.7]} 22... Rfd8
{[%clk 0:00:45.1]} 23. Rbc1 {[%clk 0:01:25.2]} 23... b4 {[%clk 0:00:43.5]} 24.
fxg6 {[%clk 0:01:10.2]} 24... hxg6 {[%clk 0:00:44]} 25. Rd5 {[%clk 0:01:10.9]}
25... Ne7 {[%clk 0:00:39.5]} 26. Rd2 {[%clk 0:01:11.1]} 26... Nc6 {[%clk
0:00:32.7]} 27. Rcd1 {[%clk 0:01:11.7]} 27... Bf8 {[%clk 0:00:33.7]} 28. h4
{[%clk 0:01:08.3]} 28... Kf7 {[%clk 0:00:30]} 29. Kf2 {[%clk 0:01:08.1]} 29...
a5 {[%clk 0:00:28.8]} 30. Nc1 {[%clk 0:00:59.6]} 30... a4 {[%clk 0:00:21.2]} 31.
Nd3 {[%clk 0:00:48.6]} 31... Ne6 {[%clk 0:00:20.6]} 32. Bh3 {[%clk 0:00:40.6]}
32... Ned4 {[%clk 0:00:21.4]} 33. Bxd4 {[%clk 0:00:37.5]} 33... exd4 {[%clk
0:00:20.3]} 34. Nf4 {[%clk 0:00:35.5]} 34... axb3 {[%clk 0:00:20.1]} 35. axb3
{[%clk 0:00:36.8]} 35... Ra3 {[%clk 0:00:21.3]} 36. Rb2 {[%clk 0:00:21.4]} 36...
Rda8 {[%clk 0:00:20.4]} 37. Be6+ {[%clk 0:00:19.5]} 37... Kg7 {[%clk 0:00:20.5]}
38. Bd5 {[%clk 0:00:21.4]} 38... Ra2 {[%clk 0:00:21.5]} 39. Rdd2 {[%clk
0:00:17.3]} 39... Rxb2 {[%clk 0:00:21.4]} 40. Rxb2 {[%clk 0:00:19.2]} 40... Ra6
{[%clk 0:00:22.7]} 41. Bxc6 {[%clk 0:00:17.5]} 41... Rxc6 {[%clk 0:00:23.9]} 42.
Ne6+ {[%clk 0:00:17.9]} 42... Kf7 {[%clk 0:00:25.2]} 43. Nxd4 {[%clk 0:00:18.2]}
43... Ra6 {[%clk 0:00:26.8]} 44. Nb5 {[%clk 0:00:18.8]} 44... Ra1 {[%clk
0:00:24.3]} 45. Rd2 {[%clk 0:00:19.6]} 45... Ke6 {[%clk 0:00:25]} 46. Kf3 {[%clk
0:00:20.3]} 46... Rb1 {[%clk 0:00:26.1]} 47. Rd3 {[%clk 0:00:20.4]} 47... Rf1+
{[%clk 0:00:27.4]} 48. Kg4 {[%clk 0:00:19.3]} 48... Rh1 {[%clk 0:00:23.4]} 49.
Nd4+ {[%clk 0:00:18.9]} 49... Kf7 {[%clk 0:00:18.7]} 50. Nc6 {[%clk 0:00:19.3]}
50... Re1 {[%clk 0:00:03.8]} 51. Kf3 {[%clk 0:00:18.5]} 51... Rf1+ {[%clk
0:00:05]} 52. Ke2 {[%clk 0:00:15.9]} 52... Rg1 {[%clk 0:00:05.3]} 53. Kf2 {[%clk
0:00:17.2]} 53... Rc1 {[%clk 0:00:05.5]} 54. Nxb4 {[%clk 0:00:16.7]} 54... Ke6
{[%clk 0:00:06.7]} 55. Nd5 {[%clk 0:00:17]} 55... Rb1 {[%clk 0:00:07.1]} 56. Kf3
{[%clk 0:00:16.2]} 56... Rf1+ {[%clk 0:00:07.8]} 57. Kg4 {[%clk 0:00:17.3]}
57... Re1 {[%clk 0:00:09.1]} 58. Re3 {[%clk 0:00:15.9]} 58... Rd1 {[%clk
0:00:09.4]} 59. Rf3 {[%clk 0:00:16.3]} 59... Bg7 {[%clk 0:00:09.8]} 60. h5
{[%clk 0:00:16]} 60... Rd4 {[%clk 0:00:09]} 61. hxg6 {[%clk 0:00:12.8]} 61...
Rxe4+ {[%clk 0:00:09.8]} 62. Rf4 {[%clk 0:00:14]} 62... Re1 {[%clk 0:00:10.2]}
63. Kf3 {[%clk 0:00:12.3]} 63... Rb1 {[%clk 0:00:10.9]} 64. Re4+ {[%clk
0:00:11.5]} 64... Kf5 {[%clk 0:00:11.2]} 65. Re3 {[%clk 0:00:12.6]} 65... Kxg6
{[%clk 0:00:11.4]} 66. Nf4+ {[%clk 0:00:12]} 66... Kf7 {[%clk 0:00:11.1]} 67.
Ne6 {[%clk 0:00:12.3]} 67... Bh6 {[%clk 0:00:11.1]} 68. Nd8+ {[%clk 0:00:13.1]}
68... Kg6 {[%clk 0:00:11.8]} 69. Rd3 {[%clk 0:00:14.3]} 69... Rf1+ {[%clk
0:00:12.2]} 70. Ke4 {[%clk 0:00:15.2]} 70... Bf8 {[%clk 0:00:12.1]} 71. Kd5
{[%clk 0:00:15.4]} 71... Rf5+ {[%clk 0:00:12.1]} 72. Kc6 {[%clk 0:00:15.2]}
72... Rc5+ {[%clk 0:00:13.2]} 73. Kd7 {[%clk 0:00:15.4]} 73... Re5 {[%clk
0:00:12.4]} 74. Rd4 {[%clk 0:00:14]} 74... Re3 {[%clk 0:00:10.1]} 75. b4 {[%clk
0:00:13.4]} 75... Rxg3 {[%clk 0:00:10.5]} 76. b5 {[%clk 0:00:14.9]} 76... Rb3
{[%clk 0:00:10.2]} 77. Kc6 {[%clk 0:00:14.6]} 77... Bh6 {[%clk 0:00:09.4]} 78.
b6 {[%clk 0:00:13.6]} 78... Be3 {[%clk 0:00:10.2]} 79. Ne6 {[%clk 0:00:10.5]}
79... Kf7 {[%clk 0:00:08.1]} 80. Rxd6 {[%clk 0:00:08.5]} 80... Rxb6+ {[%clk
0:00:07.6]} 81. Kd5 {[%clk 0:00:09.6]} 81... Rxd6+ {[%clk 0:00:08.6]} 82. Kxd6
{[%clk 0:00:11.5]} 82... f5 {[%clk 0:00:09.2]} 83. Kd5 {[%clk 0:00:10.3]} 83...
f4 {[%clk 0:00:10.2]} 84. Nd4 {[%clk 0:00:10.4]} 84... Bxd4 {[%clk 0:00:09.1]}
85. Kxd4 {[%clk 0:00:11.1]} 85... f3 {[%clk 0:00:08.7]} 86. Ke3 {[%clk
0:00:12.2]} 86... Ke6 {[%clk 0:00:09.9]} 87. Kxf3 {[%clk 0:00:13]} 87... Kd6
{[%clk 0:00:10.5]} 88. Ke4 {[%clk 0:00:14.2]} 88... Kc5 {[%clk 0:00:11.6]} 89.
Kd3 {[%clk 0:00:15.5]} 89... Kc6 {[%clk 0:00:12.7]} 90. Kd4 {[%clk 0:00:17.1]}
90... Kd6 {[%clk 0:00:14.1]} 91. Kc3 {[%clk 0:00:18.3]} 91... Kc5 {[%clk
0:00:15.1]} 92. Kb3 {[%clk 0:00:19.5]} 92... Kc6 {[%clk 0:00:15.8]} 93. Kb4
{[%clk 0:00:21.4]} 93... Kb6 {[%clk 0:00:17.1]} 94. c5+ {[%clk 0:00:23.3]} 94...
Kc6 {[%clk 0:00:18.5]} 95. Kc4 {[%clk 0:00:25.2]} 95... Kc7 {[%clk 0:00:19.6]}
96. Kd5 {[%clk 0:00:27.1]} 96... Kd7 {[%clk 0:00:21]} 97. Kd4 {[%clk 0:00:27.5]}
97... Kc7 {[%clk 0:00:21.4]} 98. Kc3 {[%clk 0:00:28.4]} 98... Kd7 {[%clk
0:00:20.8]} 99. Kb4 {[%clk 0:00:28.2]} 99... Kc7 {[%clk 0:00:21.6]} 100. Kb5
{[%clk 0:00:28.6]} 100... Kb7 {[%clk 0:00:22.7]} 101. c6+ {[%clk 0:00:29.8]}
101... Kc7 {[%clk 0:00:24.1]} 102. Kc5 {[%clk 0:00:31.5]} 102... Kc8 {[%clk
0:00:25.1]} 103. Kd5 {[%clk 0:00:32.2]} 103... Kc7 {[%clk 0:00:23.9]} 104. Kc5
{[%clk 0:00:33.4]} 104... Kc8 {[%clk 0:00:25.3]} 105. Kb5 {[%clk 0:00:34.6]}
105... Kc7 {[%clk 0:00:25.8]} 106. Kc5 {[%clk 0:00:35]} 106... Kc8 {[%clk
0:00:27.2]} 107. Kd6 {[%clk 0:00:35.7]} 107... Kd8 {[%clk 0:00:28.5]} 108. c7+
{[%clk 0:00:36.1]} 108... Kc8 {[%clk 0:00:29.7]} 109. Kc6 {[%clk 0:00:37.4]}
1/2-1/2

[Event "*** Titled Tuesday 3|2 Blitz"]
[Site "Chess.com"]
[Date "2016.10.04"]
[Round "4"]
[White "Andrejkin"]
[Black "johnathan113"]
[Result "0-1"]
[WhiteElo "2165"]
[BlackElo "2273"]
[TimeControl "180+2"]
[EndTime "11:45:43 PDT"]
[Termination "johnathan113 won by checkmate"]

1. d4 {[%clk 0:03:02]} 1... Nf6 {[%clk 0:03:01]} 2. Bf4 {[%clk 0:03:01.3]} 2...
g6 {[%clk 0:03:01.9]} 3. Nf3 {[%clk 0:03:02.1]} 3... Bg7 {[%clk 0:03:03.4]} 4.
c4 {[%clk 0:03:02.7]} 4... O-O {[%clk 0:03:04.9]} 5. Nc3 {[%clk 0:03:03.9]} 5...
d6 {[%clk 0:03:06.5]} 6. e3 {[%clk 0:03:03.3]} 6... Nh5 {[%clk 0:03:06.7]} 7.
Bg3 {[%clk 0:03:03.7]} 7... Nd7 {[%clk 0:03:06.7]} 8. Be2 {[%clk 0:03:01]} 8...
e5 {[%clk 0:03:07.8]} 9. O-O {[%clk 0:02:59.8]} 9... Nxg3 {[%clk 0:03:05.8]} 10.
hxg3 {[%clk 0:03:00.5]} 10... c6 {[%clk 0:03:07.3]} 11. Rc1 {[%clk 0:03:00.5]}
11... Qe7 {[%clk 0:03:08.2]} 12. b4 {[%clk 0:02:53]} 12... f5 {[%clk 0:03:06.8]}
13. c5 {[%clk 0:02:20.5]} 13... d5 {[%clk 0:02:56.2]} 14. dxe5 {[%clk
0:02:14.8]} 14... Nxe5 {[%clk 0:02:58.1]} 15. Nd4 {[%clk 0:02:13.6]} 15... a5
{[%clk 0:02:56.3]} 16. a3 {[%clk 0:02:13.9]} 16... Bd7 {[%clk 0:02:56.5]} 17.
Qd2 {[%clk 0:02:11.3]} 17... axb4 {[%clk 0:02:55.5]} 18. axb4 {[%clk 0:02:11.8]}
18... Ra3 {[%clk 0:02:57.4]} 19. Rb1 {[%clk 0:02:11.3]} 19... Rfa8 {[%clk
0:02:58.3]} 20. Rb2 {[%clk 0:02:11.8]} 20... h5 {[%clk 0:02:54.8]} 21. Rfb1
{[%clk 0:02:12.4]} 21... h4 {[%clk 0:02:56.2]} 22. gxh4 {[%clk 0:02:10.2]} 22...
Qxh4 {[%clk 0:02:58.1]} 23. g3 {[%clk 0:02:10.9]} 23... Qh6 {[%clk 0:02:51.8]}
24. b5 {[%clk 0:02:07.7]} 24... Kf7 {[%clk 0:02:43.8]} 25. bxc6 {[%clk
0:02:07.7]} 25... Rh8 {[%clk 0:02:44.9]} 26. Bh5 {[%clk 0:01:34]} 26... Qxh5
{[%clk 0:02:44.3]} 27. Kf1 {[%clk 0:01:35.2]} 27... bxc6 {[%clk 0:02:41.3]} 28.
Rb7 {[%clk 0:01:33.3]} 28... Qg4 {[%clk 0:02:30.3]} 29. Nxc6 {[%clk 0:01:10.6]}
29... Rh1+ {[%clk 0:02:27.9]} 30. Kg2 {[%clk 0:01:07.5]} 30... Qf3# {[%clk
0:02:29.2]} 0-1

[Event "*** Titled Tuesday 3|2 Blitz"]
[Site "Chess.com"]
[Date "2016.10.04"]
[Round "4"]
[White "Blitzstream"]
[Black "Houdinovic"]
[Result "1-0"]
[WhiteElo "2539"]
[BlackElo "2312"]
[TimeControl "180+2"]
[EndTime "11:46:21 PDT"]
[Termination "Blitzstream won by resignation"]

1. d4 {[%clk 0:03:02]} 1... e6 {[%clk 0:03:01.2]} 2. e4 {[%clk 0:03:02.8]} 2...
d5 {[%clk 0:03:01.5]} 3. Nd2 {[%clk 0:03:04.4]} 3... Nc6 {[%clk 0:03:01.8]} 4.
Ngf3 {[%clk 0:03:04.7]} 4... Nf6 {[%clk 0:03:03]} 5. e5 {[%clk 0:03:05.6]} 5...
Nd7 {[%clk 0:03:04.4]} 6. Bd3 {[%clk 0:03:05.7]} 6... f6 {[%clk 0:03:05.3]} 7.
Ng5 {[%clk 0:02:50.1]} 7... Ndxe5 {[%clk 0:03:06.1]} 8. dxe5 {[%clk 0:02:46]}
8... fxg5 {[%clk 0:03:07.2]} 9. Qh5+ {[%clk 0:02:40.2]} 9... g6 {[%clk
0:03:08.4]} 10. Bxg6+ {[%clk 0:02:35.9]} 10... Kd7 {[%clk 0:03:09.1]} 11. Bd3
{[%clk 0:02:11.9]} 11... Nxe5 {[%clk 0:03:07.8]} 12. O-O {[%clk 0:02:05.3]}
12... Bg7 {[%clk 0:02:30.1]} 13. Nf3 {[%clk 0:01:42.4]} 13... Nxf3+ {[%clk
0:02:28.9]} 14. Qxf3 {[%clk 0:01:44.3]} 14... c6 {[%clk 0:02:05.2]} 15. c4
{[%clk 0:01:37.7]} 15... b6 {[%clk 0:01:44.6]} 16. cxd5 {[%clk 0:01:35.6]} 16...
exd5 {[%clk 0:01:38]} 17. Re1 {[%clk 0:01:13.8]} 17... Rf8 {[%clk 0:01:21.1]}
18. Qg3 {[%clk 0:01:11.1]} 18... Qf6 {[%clk 0:01:17.9]} 19. Bxg5 {[%clk
0:01:07.7]} 19... Qxb2 {[%clk 0:01:06.1]} 20. Re7+ {[%clk 0:01:01]} 1-0

[Event "*** Titled Tuesday 3|2 Blitz"]
[Site "Chess.com"]
[Date "2016.10.04"]
[Round "4"]
[White "petrpalachev"]
[Black "RamonManon0g"]
[Result "1-0"]
[WhiteElo "2395"]
[BlackElo "2201"]
[TimeControl "180+2"]
[EndTime "11:46:43 PDT"]
[Termination "petrpalachev won by resignation"]

1. d4 {[%clk 0:03:02]} 1... Nf6 {[%clk 0:03:01]} 2. c4 {[%clk 0:03:03.2]} 2...
g6 {[%clk 0:03:02.5]} 3. Nc3 {[%clk 0:03:02.8]} 3... d5 {[%clk 0:03:03.6]} 4.
Bf4 {[%clk 0:03:00.1]} 4... Bg7 {[%clk 0:03:03]} 5. e3 {[%clk 0:03:01.6]} 5...
O-O {[%clk 0:03:03.9]} 6. Rc1 {[%clk 0:03:00.2]} 6... c5 {[%clk 0:03:04.7]} 7.
dxc5 {[%clk 0:03:00.9]} 7... Qa5 {[%clk 0:03:03.4]} 8. Qa4 {[%clk 0:02:55.6]}
8... Qxc5 {[%clk 0:03:00.3]} 9. Nf3 {[%clk 0:02:47.7]} 9... Nc6 {[%clk
0:02:52.2]} 10. Qb5 {[%clk 0:02:42.2]} 10... Qxb5 {[%clk 0:01:56.3]} 11. cxb5
{[%clk 0:02:44.1]} 11... Nb8 {[%clk 0:01:55.7]} 12. a4 {[%clk 0:02:41.7]} 12...
Nbd7 {[%clk 0:01:47.6]} 13. Be2 {[%clk 0:02:37.4]} 13... Re8 {[%clk 0:01:37.5]}
14. Ne5 {[%clk 0:02:37.5]} 14... Nxe5 {[%clk 0:01:23.2]} 15. Bxe5 {[%clk
0:02:39.4]} 15... Be6 {[%clk 0:01:23.5]} 16. O-O {[%clk 0:02:39.6]} 16... Rac8
{[%clk 0:01:23.6]} 17. Rfd1 {[%clk 0:02:40.1]} 17... Red8 {[%clk 0:01:07.9]} 18.
Rd4 {[%clk 0:02:39.6]} 18... Ne8 {[%clk 0:01:02.4]} 19. Bxg7 {[%clk 0:02:40.1]}
19... Kxg7 {[%clk 0:01:01.5]} 20. Bf3 {[%clk 0:02:39.5]} 20... Nf6 {[%clk
0:01:02.1]} 21. Rcd1 {[%clk 0:02:39.2]} 21... Rc5 {[%clk 0:00:55.7]} 22. h4
{[%clk 0:02:38.1]} 22... h5 {[%clk 0:00:55.6]} 23. e4 {[%clk 0:02:32.4]} 23...
dxe4 {[%clk 0:00:37.3]} 24. Rxd8 {[%clk 0:02:32.5]} 24... exf3 {[%clk
0:00:39.2]} 25. gxf3 {[%clk 0:02:31.7]} 25... Rxc3 {[%clk 0:00:40.4]} 26. bxc3
{[%clk 0:02:31.2]} 26... Bb3 {[%clk 0:00:36.2]} 27. R1d4 {[%clk 0:02:27.2]}
27... e5 {[%clk 0:00:36.3]} 28. Rb4 {[%clk 0:02:28.3]} 28... Be6 {[%clk
0:00:36.3]} 29. c4 {[%clk 0:02:24.5]} 29... Nd7 {[%clk 0:00:32]} 30. Ra8 {[%clk
0:02:15.1]} 30... a6 {[%clk 0:00:29]} 31. bxa6 {[%clk 0:02:15.5]} 31... bxa6
{[%clk 0:00:30.9]} 32. Rxa6 {[%clk 0:02:16]} 32... Nc5 {[%clk 0:00:32.8]} 33.
Rxe6 {[%clk 0:02:16.8]} 33... fxe6 {[%clk 0:00:33.5]} 34. a5 {[%clk 0:02:17.9]}
1-0

[Event "*** Titled Tuesday 3|2 Blitz"]
[Site "Chess.com"]
[Date "2016.10.04"]
[Round "4"]
[White "MyleneFarmer"]
[Black "Gergo85"]
[Result "0-1"]
[WhiteElo "2302"]
[BlackElo "2444"]
[TimeControl "180+2"]
[EndTime "11:46:49 PDT"]
[Termination "Gergo85 won by resignation"]

1. e4 {[%clk 0:03:02]} 1... c6 {[%clk 0:02:57.5]} 2. d4 {[%clk 0:03:01.8]} 2...
d5 {[%clk 0:02:58.5]} 3. Nd2 {[%clk 0:03:03.3]} 3... dxe4 {[%clk 0:02:58.4]} 4.
Nxe4 {[%clk 0:03:04.3]} 4... Nf6 {[%clk 0:03:00.3]} 5. Nxf6+ {[%clk 0:02:58.4]}
5... exf6 {[%clk 0:03:02.2]} 6. c3 {[%clk 0:02:55.1]} 6... Bd6 {[%clk
0:03:00.9]} 7. Bd3 {[%clk 0:02:54.3]} 7... Nd7 {[%clk 0:03:02.2]} 8. Qc2 {[%clk
0:02:55.1]} 8... Nf8 {[%clk 0:03:03.2]} 9. Ne2 {[%clk 0:02:56.4]} 9... Qc7
{[%clk 0:03:03.5]} 10. h4 {[%clk 0:02:54.8]} 10... Be6 {[%clk 0:03:00.4]} 11. g3
{[%clk 0:02:40.1]} 11... O-O-O {[%clk 0:02:55.4]} 12. Nf4 {[%clk 0:02:26.3]}
12... Bg4 {[%clk 0:02:40.8]} 13. Bf5+ {[%clk 0:02:26]} 13... Bxf5 {[%clk
0:02:41.9]} 14. Qxf5+ {[%clk 0:02:26]} 14... Kb8 {[%clk 0:02:43]} 15. Be3 {[%clk
0:02:22.3]} 15... Ng6 {[%clk 0:02:44.2]} 16. Nh5 {[%clk 0:02:20.4]} 16... Ne7
{[%clk 0:02:29.3]} 17. Qd3 {[%clk 0:02:18.8]} 17... Nd5 {[%clk 0:02:25.6]} 18.
O-O-O {[%clk 0:02:18.1]} 18... g6 {[%clk 0:02:26.3]} 19. Nf4 {[%clk 0:02:08.7]}
19... Nxf4 {[%clk 0:02:16.6]} 20. gxf4 {[%clk 0:02:10.2]} 20... Bxf4 {[%clk
0:02:18.2]} 21. h5 {[%clk 0:02:11.8]} 21... Rhe8 {[%clk 0:02:07.9]} 22. Rde1
{[%clk 0:02:08.3]} 22... Re7 {[%clk 0:01:56.3]} 23. Kc2 {[%clk 0:01:57.2]} 23...
Rde8 {[%clk 0:01:47.6]} 24. Bxf4 {[%clk 0:01:54]} 24... Qxf4 {[%clk 0:01:46.9]}
25. Rxe7 {[%clk 0:01:54.2]} 25... Rxe7 {[%clk 0:01:48.8]} 26. hxg6 {[%clk
0:01:55.7]} 26... Qxf2+ {[%clk 0:01:45.5]} 27. Kb3 {[%clk 0:01:55.7]} 27... hxg6
{[%clk 0:01:36.3]} 28. Rf1 {[%clk 0:01:56]} 28... Qe3 {[%clk 0:01:04.6]} 29. Qc4
{[%clk 0:01:47.5]} 29... Qe6 {[%clk 0:01:01.9]} 30. Rh1 {[%clk 0:01:48.1]} 30...
Kc7 {[%clk 0:01:00.2]} 31. a4 {[%clk 0:01:45.8]} 31... f5 {[%clk 0:00:59.1]} 32.
Kb4 {[%clk 0:01:46.6]} 32... Qxc4+ {[%clk 0:00:55.3]} 0-1

[Event "*** Titled Tuesday 3|2 Blitz"]
[Site "Chess.com"]
[Date "2016.10.04"]
[Round "4"]
[White "ZapataCharlesS"]
[Black "ChessWarrior7197"]
[Result "1-0"]
[WhiteElo "2591"]
[BlackElo "2469"]
[TimeControl "180+2"]
[EndTime "11:47:10 PDT"]
[Termination "ZapataCharlesS won by resignation"]

1. e4 {[%clk 0:03:01.5]} 1... c5 {[%clk 0:03:00.1]} 2. c3 {[%clk 0:02:58.7]}
2... d5 {[%clk 0:02:56.7]} 3. exd5 {[%clk 0:02:58]} 3... Qxd5 {[%clk 0:02:58.6]}
4. Nf3 {[%clk 0:02:59.9]} 4... Nc6 {[%clk 0:02:52]} 5. d4 {[%clk 0:02:59.6]}
5... Bg4 {[%clk 0:02:46.5]} 6. Be2 {[%clk 0:02:55.1]} 6... e6 {[%clk 0:02:46.6]}
7. c4 {[%clk 0:02:51.9]} 7... Qd8 {[%clk 0:02:42.5]} 8. d5 {[%clk 0:02:48]} 8...
exd5 {[%clk 0:02:42.9]} 9. cxd5 {[%clk 0:02:48]} 9... Nb4 {[%clk 0:02:42.4]} 10.
Nc3 {[%clk 0:02:34]} 10... Nf6 {[%clk 0:02:42.1]} 11. Bb5+ {[%clk 0:02:22.5]}
11... Bd7 {[%clk 0:02:41.2]} 12. O-O {[%clk 0:02:24.4]} 12... Bxb5 {[%clk
0:02:28.6]} 13. Re1+ {[%clk 0:02:25.2]} 13... Be7 {[%clk 0:01:50.3]} 14. d6
{[%clk 0:02:20.7]} 14... Bc6 {[%clk 0:01:46.1]} 15. Rxe7+ {[%clk 0:01:50.6]}
15... Kf8 {[%clk 0:01:46.9]} 16. Ne5 {[%clk 0:01:52.5]} 16... Be8 {[%clk
0:01:33.4]} 17. Bg5 {[%clk 0:01:52.6]} 17... Nc6 {[%clk 0:01:02.8]} 18. Bxf6
{[%clk 0:01:51.6]} 18... gxf6 {[%clk 0:01:02.8]} 19. Nxc6 {[%clk 0:01:41.8]}
19... Bxc6 {[%clk 0:01:04.7]} 20. Qd2 {[%clk 0:01:40]} 20... Kg7 {[%clk
0:01:04.6]} 21. Rae1 {[%clk 0:01:35.8]} 21... Re8 {[%clk 0:00:56]} 22. Rxe8
{[%clk 0:01:32.5]} 22... Bxe8 {[%clk 0:00:57.9]} 23. Re3 {[%clk 0:01:31]} 23...
Kh8 {[%clk 0:00:25.3]} 24. Rg3 {[%clk 0:01:26.5]} 1-0

[Event "*** Titled Tuesday 3|2 Blitz"]
[Site "Chess.com"]
[Date "2016.10.04"]
[Round "4"]
[White "Rating-Schmating"]
[Black "cassoulet"]
[Result "0-1"]
[WhiteElo "2200"]
[BlackElo "2293"]
[TimeControl "180+2"]
[EndTime "11:47:18 PDT"]
[Termination "cassoulet won by resignation"]

1. e4 {[%clk 0:03:01.9]} 1... c5 {[%clk 0:03:00.6]} 2. Nf3 {[%clk 0:03:01.9]}
2... d6 {[%clk 0:03:02]} 3. d4 {[%clk 0:03:02.9]} 3... cxd4 {[%clk 0:03:03.9]}
4. Nxd4 {[%clk 0:03:04]} 4... Nf6 {[%clk 0:03:05.5]} 5. Nc3 {[%clk 0:03:05.4]}
5... Nc6 {[%clk 0:03:06.5]} 6. Be2 {[%clk 0:03:01.6]} 6... g6 {[%clk 0:03:05.1]}
7. Be3 {[%clk 0:03:02.5]} 7... Bg7 {[%clk 0:03:06.3]} 8. O-O {[%clk 0:03:03.6]}
8... O-O {[%clk 0:03:06.6]} 9. Qd2 {[%clk 0:03:04.8]} 9... Bd7 {[%clk
0:03:08.1]} 10. f4 {[%clk 0:03:02.3]} 10... Rc8 {[%clk 0:03:08.5]} 11. Nxc6
{[%clk 0:03:00.6]} 11... Bxc6 {[%clk 0:03:09]} 12. Bf3 {[%clk 0:03:00.1]} 12...
Nd7 {[%clk 0:03:04.2]} 13. Bd4 {[%clk 0:02:59.5]} 13... Bxd4+ {[%clk 0:03:03.1]}
14. Qxd4 {[%clk 0:03:00.1]} 14... Qb6 {[%clk 0:03:04.8]} 15. Qxb6 {[%clk
0:03:00.8]} 15... Nxb6 {[%clk 0:03:06.7]} 16. Be2 {[%clk 0:02:55.2]} 16... Bd7
{[%clk 0:02:59.1]} 17. Bd3 {[%clk 0:02:53.6]} 17... Rc5 {[%clk 0:02:55.1]} 18.
f5 {[%clk 0:02:53.8]} 18... g5 {[%clk 0:02:53.8]} 19. f6 {[%clk 0:02:48.5]}
19... e6 {[%clk 0:02:53.9]} 20. Rad1 {[%clk 0:02:47.7]} 20... Rd8 {[%clk
0:02:50.7]} 21. Be2 {[%clk 0:02:47.8]} 21... Bc6 {[%clk 0:02:50.4]} 22. Bf3
{[%clk 0:02:40.3]} 22... Nc4 {[%clk 0:02:43.2]} 23. b4 {[%clk 0:02:33.6]} 23...
Re5 {[%clk 0:02:44.2]} 24. Rfe1 {[%clk 0:02:32.4]} 24... a6 {[%clk 0:02:41.1]}
25. Be2 {[%clk 0:02:31.8]} 25... Ne3 {[%clk 0:02:32.6]} 26. Rd2 {[%clk 0:02:29]}
26... Bxe4 {[%clk 0:02:33.3]} 27. Bh5 {[%clk 0:02:13.1]} 27... Nc4 {[%clk
0:02:13.2]} 28. Rde2 {[%clk 0:01:56.4]} 28... Bf5 {[%clk 0:02:05]} 29. Bf3
{[%clk 0:01:51]} 29... Rxe2 {[%clk 0:01:54.9]} 30. Rxe2 {[%clk 0:01:48.1]} 30...
d5 {[%clk 0:01:55.4]} 31. Nxd5 {[%clk 0:01:45]} 31... exd5 {[%clk 0:01:53.1]}
32. Bxd5 {[%clk 0:01:46.3]} 32... Nd6 {[%clk 0:01:53.8]} 33. c4 {[%clk 0:01:45]}
33... Bd3 {[%clk 0:01:51.7]} 34. Rd2 {[%clk 0:01:41.6]} 34... Bf5 {[%clk
0:01:50.8]} 35. c5 {[%clk 0:01:41.9]} 35... Ne8 {[%clk 0:01:43.1]} 36. Bxf7+
{[%clk 0:01:42]} 36... Kxf7 {[%clk 0:01:45]} 37. Rxd8 {[%clk 0:01:43.3]} 37...
Be4 {[%clk 0:01:43.8]} 38. Kf2 {[%clk 0:01:36.4]} 38... Nxf6 {[%clk 0:01:44.4]}
39. h3 {[%clk 0:01:34.7]} 39... Ke7 {[%clk 0:01:45.3]} 40. Rd4 {[%clk 0:01:34]}
40... Bd5 {[%clk 0:01:45.9]} 41. a4 {[%clk 0:01:34.1]} 41... Ke6 {[%clk
0:01:47.2]} 42. g4 {[%clk 0:01:34.2]} 42... Ke5 {[%clk 0:01:47.8]} 43. Ke3
{[%clk 0:01:35.4]} 43... Bc6 {[%clk 0:01:47.3]} 44. a5 {[%clk 0:01:25.8]} 44...
Nd5+ {[%clk 0:01:47.6]} 45. Kd3 {[%clk 0:01:25.1]} 45... Bb5+ {[%clk 0:01:48.7]}
46. Kd2 {[%clk 0:01:22.1]} 46... Kxd4 {[%clk 0:01:48.1]} 0-1

[Event "*** Titled Tuesday 3|2 Blitz"]
[Site "Chess.com"]
[Date "2016.10.04"]
[Round "4"]
[White "dawtonlms"]
[Black "Kawhi_Leonard2"]
[Result "0-1"]
[WhiteElo "2158"]
[BlackElo "1990"]
[TimeControl "180+2"]
[EndTime "11:47:21 PDT"]
[Termination "Kawhi_Leonard2 won by resignation"]

1. e4 {[%clk 0:03:00.2]} 1... c5 {[%clk 0:03:00.3]} 2. Nf3 {[%clk 0:03:01]} 2...
d6 {[%clk 0:03:01.1]} 3. Bb5+ {[%clk 0:03:00.8]} 3... Bd7 {[%clk 0:03:01.1]} 4.
Bxd7+ {[%clk 0:03:00.5]} 4... Qxd7 {[%clk 0:03:02.2]} 5. c4 {[%clk 0:03:00.5]}
5... Nc6 {[%clk 0:02:59.9]} 6. Nc3 {[%clk 0:03:00.9]} 6... g6 {[%clk 0:03:00.3]}
7. d4 {[%clk 0:03:00.8]} 7... cxd4 {[%clk 0:03:00.3]} 8. Nxd4 {[%clk 0:03:00.9]}
8... Bg7 {[%clk 0:03:01.9]} 9. Be3 {[%clk 0:03:00]} 9... Nf6 {[%clk 0:03:03.3]}
10. f3 {[%clk 0:02:53.5]} 10... O-O {[%clk 0:03:03.7]} 11. O-O {[%clk
0:02:54.3]} 11... Rac8 {[%clk 0:03:03]} 12. Nde2 {[%clk 0:02:52.9]} 12... Rfe8
{[%clk 0:02:48.7]} 13. Qd2 {[%clk 0:02:44.4]} 13... a6 {[%clk 0:02:30.5]} 14. a4
{[%clk 0:02:41.4]} 14... Na5 {[%clk 0:02:27]} 15. Qd3 {[%clk 0:01:51.5]} 15...
Nxc4 {[%clk 0:02:26.5]} 16. Bc1 {[%clk 0:01:52.7]} 16... Red8 {[%clk 0:02:01]}
17. Rd1 {[%clk 0:01:50.9]} 17... e6 {[%clk 0:01:54.3]} 18. a5 {[%clk 0:01:29.6]}
18... d5 {[%clk 0:01:47.7]} 19. exd5 {[%clk 0:01:01.6]} 19... Nxd5 {[%clk
0:01:47.4]} 20. b3 {[%clk 0:00:41.8]} 20... Nxc3 {[%clk 0:01:13.2]} 21. Qxd7
{[%clk 0:00:36.1]} 21... Nxe2+ {[%clk 0:01:13]} 22. Kf2 {[%clk 0:00:36.8]} 22...
Rxd7 {[%clk 0:01:13.4]} 23. Rxd7 {[%clk 0:00:37.6]} 23... Bxa1 {[%clk
0:01:04.9]} 24. Kxe2 {[%clk 0:00:34.7]} 0-1